fUST/lending_fUST_20260405
["ID","MTS","AMOUNT","RATE_DAILY","PERIOD"]
[419799952,1775386395974,-810.84,0.00034801,120]
[419799953,1775386396000,-810.84,0.00034801,120]
[419799954,1775386396025,-810.84,0.00034801,120]
[419799955,1775386396052,-810.94463392,0.00034801,120]
[419799956,1775386396078,-2000.0,0.00034801,120]
[419799957,1775386396103,-2000.0,0.00034801,120]
[419799958,1775386396129,-2000.0,0.00034801,120]
[419799959,1775386396155,-1911.1740154,0.00034801,120]
[419799960,1775386396267,-178.83595192,0.00034801,110]
[419799961,1775386396296,-608.53946814,0.00034801,120]
[419799962,1775386396324,-608.53946814,0.00034801,120]
[419799963,1775386396353,-608.53946814,0.00034801,120]
[419799964,1775386396381,-608.53946814,0.00034801,120]
[419799965,1775386396409,-608.53946814,0.00034801,120]
[419799966,1775386396437,-608.53946814,0.00034801,120]
[419799967,1775386396467,-608.53946814,0.00034801,120]
[419799968,1775386396495,-608.53946814,0.00034801,120]
[419799969,1775386396524,-608.53946814,0.00034801,120]
[419799970,1775386396552,-608.53946814,0.00034801,120]
[419799971,1775386396581,-608.53946814,0.00034801,120]
[419799972,1775386396610,-608.53946814,0.00034801,120]
[419799973,1775386396638,-608.53946814,0.00034801,120]
[419799974,1775386396669,-608.53946814,0.00034801,120]
[419799975,1775386396699,-608.53946814,0.00034801,120]
[419799976,1775386396727,-805.35550168,0.00034801,120]
[419799977,1775386396753,-152.16792427,0.00034801,120]
[419799978,1775386400727,1000.0,0.00028177,30]
[419799979,1775386401187,244.0,0.00028177,30]
[419799980,1775386401640,1000.0,0.00030995,30]
[419799981,1775386402099,492.0,0.00030995,30]
[419799983,1775386456555,299.68006534,0.00034801,120]
[419799984,1775386458767,248.85618743,0.00034801,120]
[419799985,1775386473706,162.89823604,0.00034801,120]
[419799986,1775386484385,210.85599231,0.00034801,120]
[419799987,1775386484424,217.15276746,0.00034801,120]
[419799988,1775386484455,292.53719117,0.00034801,120]
[419799989,1775386484485,244.26756107,0.00034801,120]
[419799990,1775386484518,652.95542307,0.00034801,120]
[419799991,1775386484743,292.53719117,0.00034801,120]
[419799992,1775386484775,244.26756107,0.00034801,120]
[419799993,1775386484809,652.95542307,0.00034801,120]
[419799994,1775386485042,292.53719117,0.00034801,120]
[419799995,1775386485073,244.26756107,0.00034801,120]
[419799996,1775386485380,652.95542307,0.00034801,120]
[419799997,1775386485414,244.26756107,0.00034801,120]
[419799998,1775386485446,292.53719117,0.00034801,120]
[419799999,1775386485570,217.15276746,0.00034801,120]
[419800000,1775386485672,652.95542307,0.00034801,120]
[419800001,1775386485751,244.26756107,0.00034801,120]
[419800002,1775386485842,292.53719117,0.00034801,120]
[419800003,1775386485929,217.15276746,0.00034801,120]
[419800004,1775386485981,652.95542307,0.00034801,120]
[419800005,1775386486043,244.26756107,0.00034801,120]
[419800006,1775386486124,292.53719117,0.00034801,120]
[419800007,1775386486303,217.15276746,0.00034801,120]
[419800008,1775386486340,652.95542307,0.00034801,120]
[419800009,1775386486371,244.26756107,0.00034801,120]
[419800010,1775386486413,292.53719117,0.00034801,120]
[419800011,1775386486599,217.15276746,0.00034801,120]
[419800012,1775386486632,652.95542307,0.00034801,120]
[419800013,1775386486665,244.26756107,0.00034801,120]
[419800014,1775386486970,244.26756107,0.00034801,120]
[419800015,1775386487001,217.15276746,0.00034801,120]
[419800016,1775386487033,652.95542307,0.00034801,120]
[419800017,1775386487269,244.26756107,0.00034801,120]
[419800018,1775386487305,217.15276746,0.00034801,120]
[419800019,1775386487442,652.95542307,0.00034801,120]
[419800020,1775386487569,244.26756107,0.00034801,120]
[419800021,1775386487601,217.15276746,0.00034801,120]
[419800022,1775386487635,652.95542307,0.00034801,120]
[419800023,1775386487885,244.26756107,0.00034801,120]
[419800024,1775386487917,217.15276746,0.00034801,120]
[419800025,1775386487949,652.95542307,0.00034801,120]
[419800026,1775386488220,217.15276746,0.00034801,120]
[419800027,1775386488256,652.95542307,0.00034801,120]
[419800028,1775386488287,244.26756107,0.00034801,120]
[419800029,1775386488537,652.95542307,0.00034801,120]
[419800030,1775386488570,244.26756107,0.00034801,120]
[419800031,1775386488606,217.15276746,0.00034801,120]
[419800032,1775386488840,652.95542307,0.00034801,120]
[419800033,1775386488871,244.26756107,0.00034801,120]
[419800034,1775386488902,217.15276746,0.00034801,120]
[419800035,1775386489123,652.95542307,0.00034801,120]
[419800036,1775386489166,217.15276746,0.00034801,120]
[419800037,1775386489492,217.15276746,0.00034801,120]
[419800038,1775386498075,507.33,0.00034801,120]
[419800039,1775386498296,507.33,0.00034801,120]
[419800040,1775386498546,507.33,0.00034801,120]
[419800041,1775386498782,507.33,0.00034801,120]
[419800042,1775386503445,507.33,0.00034801,120]
[419800043,1775386503557,1009.55093702,0.00034801,120]
[419800044,1775386503683,507.33,0.00034801,120]
[419800045,1775386503899,507.33,0.00034801,120]
[419800046,1775386504129,507.33,0.00034801,120]
[419800047,1775386504334,507.33,0.00034801,120]
[419800048,1775386504564,507.33,0.00034801,120]
[419800049,1775386504820,507.33,0.00034801,120]
[419800050,1775386505050,507.33,0.00034801,120]
[419800051,1775386505283,507.33,0.00034801,120]
[419800052,1775386505513,507.33,0.00034801,120]
[419800053,1775386505730,507.33,0.00034801,120]
[419800054,1775386505966,507.33,0.00034801,120]
[419800055,1775386506180,507.33,0.00034801,120]
[419800056,1775386506490,507.33,0.00034801,120]
[419800057,1775386506702,507.33,0.00034801,120]
[419800058,1775386507036,507.33,0.00034801,120]
[419800059,1775386507368,507.33,0.00034801,120]
[419800060,1775386507584,507.33,0.00034801,120]
[419800061,1775386507822,507.33,0.00034801,120]
[419800062,1775386508041,507.36470429,0.00034801,120]
[419800063,1775386530157,500.0,0.00034806,120]
[419800064,1775386530371,636.4983862,0.00034806,120]
[419800065,1775386538093,172.40146741,0.0003,120]
[419800066,1775386558382,187.9167521,0.00034806,120]
[419800067,1775386559539,618.33719293,0.00034806,120]
[419800068,1775386563510,276.18560715,0.00034806,120]
[419800069,1775386566160,247.21447379,0.00034806,120]
[419800070,1775386570931,299.05709122,0.00034806,120]
[419800071,1775386571530,187.07829687,0.00034806,120]
[419800072,1775386576066,810.84,0.00034806,120]
[419800073,1775386576286,810.84,0.00034806,120]
[419800074,1775386576500,810.84,0.00034806,120]
[419800075,1775386576722,810.84,0.00034806,120]
[419800076,1775386576945,810.84,0.00034806,120]
[419800077,1775386577165,810.84,0.00034806,120]
[419800078,1775386577391,810.84,0.00034806,120]
[419800079,1775386577607,175.75,0.00034806,120]
[419800080,1775386577752,810.84,0.00034806,120]
[419800081,1775386577848,810.84,0.00034806,120]
[419800082,1775386578077,810.84,0.00034806,120]
[419800083,1775386578304,810.84,0.00034806,120]
[419800084,1775386578531,810.84,0.00034806,120]
[419800085,1775386578793,810.84,0.00034806,120]
[419800086,1775386579019,810.84,0.00034806,120]
[419800087,1775386579251,810.84,0.00034806,120]
[419800088,1775386579474,810.84,0.00034806,120]
[419800089,1775386579713,810.84,0.00034806,120]
[419800090,1775386579952,810.84,0.00034806,120]
[419800091,1775386580185,810.84,0.00034806,120]
[419800092,1775386580416,810.84,0.00034806,120]
[419800093,1775386580646,810.84,0.00034806,120]
[419800094,1775386580873,810.84,0.00034806,120]
[419800095,1775386581099,810.84,0.00034806,120]
[419800096,1775386581329,810.94463392,0.00034806,120]
[419800097,1775386583080,500.0,0.00034806,120]
[419800098,1775386583314,500.0,0.00034806,120]
[419800099,1775386583547,500.0,0.00034806,120]
[419800100,1775386583832,500.0,0.00034806,120]
[419800101,1775386584063,500.0,0.00034806,120]
[419800102,1775386584279,500.0,0.00034806,120]
[419800103,1775386584509,500.0,0.00034806,120]
[419800104,1775386584731,214.69052006,0.00034806,120]
[419800105,1775386592286,225.09164176,0.00034806,120]
[419800106,1775386594793,353.03063672,0.00034806,120]
[419800107,1775386604277,217.15276748,0.00034806,120]
[419800108,1775386604317,362.29627841,0.00034806,120]
[419800109,1775386604352,292.53719116,0.00034806,120]
[419800110,1775386604382,159.12823851,0.00034806,120]
[419800111,1775386604411,174.12157667,0.00034806,120]
[419800112,1775386604591,362.29627841,0.00034806,120]
[419800113,1775386604623,174.12157667,0.00034806,120]
[419800114,1775386604983,362.29627841,0.00034806,120]
[419800115,1775386605265,362.29627841,0.00034806,120]
[419800116,1775386605551,362.29627841,0.00034806,120]
[419800117,1775386605957,362.29627841,0.00034806,120]
[419800118,1775386606298,362.29627841,0.00034806,120]
[419800119,1775386615363,595.5568875,0.00034806,120]
[419800120,1775386615528,155.42630232,0.00034806,120]
[419800121,1775386616983,154.75825024,0.00034806,120]
[419800122,1775386618832,339.55484019,0.00034806,120]
[419800123,1775386619311,419.81548691,0.00034806,120]
[419800124,1775386625182,178.23789482,0.00034806,120]
[419800125,1775386628225,166.64258048,0.00034806,120]
[419800126,1775386633118,195.76683073,0.00034806,120]
[419800127,1775386637179,500.0,0.00034806,120]
[419800128,1775386637332,500.0,0.00034806,120]
[419800129,1775386637495,180.30395367,0.00034806,120]
[419800130,1775386637559,500.0,0.00034806,120]
[419800131,1775386637793,500.0,0.00034806,120]
[419800132,1775386638019,236.71215808,0.00034806,120]
[419800133,1775386645321,155.33635122,0.00034806,120]
[419800134,1775386650386,500.0,0.00034806,120]
[419800135,1775386652741,155.65170643,0.00034806,120]
[419800136,1775386662044,925.91,0.00034806,120]
[419800137,1775386662276,925.91,0.00034806,120]
[419800138,1775386662501,925.91,0.00034806,120]
[419800139,1775386662727,925.91,0.00034806,120]
[419800140,1775386662943,925.91,0.00034806,120]
[419800141,1775386663161,925.91,0.00034806,120]
[419800142,1775386663377,925.91,0.00034806,120]
[419800143,1775386663596,925.91,0.00034806,120]
[419800144,1775386663810,925.91,0.00034806,120]
[419800145,1775386664027,925.91,0.00034806,120]
[419800146,1775386664243,925.91,0.00034806,120]
[419800147,1775386664464,925.91,0.00034806,120]
[419800148,1775386664696,925.91,0.00034806,120]
[419800149,1775386664910,925.91,0.00034806,120]
[419800150,1775386665200,925.91,0.00034806,120]
[419800151,1775386665251,303.50190287,0.00034806,120]
[419800152,1775386665418,925.91,0.00034806,120]
[419800153,1775386665632,925.91,0.00034806,120]
[419800154,1775386665850,925.91,0.00034806,120]
[419800155,1775386666073,925.91,0.00034806,120]
[419800156,1775386666287,925.91,0.00034806,120]
[419800157,1775386666501,925.91,0.00034806,120]
[419800158,1775386666713,925.91,0.00034806,120]
[419800159,1775386666927,925.91,0.00034806,120]
[419800160,1775386667140,925.96213325,0.00034806,120]
[419800161,1775386681875,500.0,0.00034806,120]
[419800162,1775386682099,500.0,0.00034806,120]
[419800163,1775386682350,500.0,0.00034806,120]
[419800164,1775386682575,500.0,0.00034806,120]
[419800165,1775386682807,500.0,0.00034806,120]
[419800166,1775386683054,500.0,0.00034806,120]
[419800167,1775386683285,522.26095935,0.00034806,120]
[419800168,1775386686523,170.89294183,0.00034806,120]
[419800169,1775386703549,151.8569397,0.00034806,120]
[419800170,1775386724117,174.12157666,0.00034806,120]
[419800171,1775386724151,181.14813919,0.00034806,120]
[419800172,1775386724182,159.1282385,0.00034806,120]
[419800174,1775386842274,1667.7,0.00034805,120]
[419800175,1775386842527,1667.7,0.00034805,120]
[419800176,1775386842885,1667.7,0.00034805,120]
[419800177,1775386843135,1667.7,0.00034805,120]
[419800178,1775386843359,1667.7,0.00034805,120]
[419800179,1775386843578,1667.7,0.00034805,120]
[419800180,1775386843813,1667.7,0.00034805,120]
[419800181,1775386844033,1667.7,0.00034805,120]
[419800182,1775386844281,1667.7,0.00034805,120]
[419800183,1775386844499,1667.7,0.00034805,120]
[419800184,1775386844715,1667.7,0.00034805,120]
[419800185,1775386844928,1667.7,0.00034805,120]
[419800186,1775386845175,1667.7,0.00034805,120]
[419800187,1775386845394,1667.7,0.00034805,120]
[419800188,1775386845637,1667.7,0.00034805,120]
[419800189,1775386845860,1667.7,0.00034805,120]
[419800190,1775386846081,1667.7,0.00034805,120]
[419800191,1775386846301,1667.7,0.00034805,120]
[419800192,1775386846550,1667.7,0.00034805,120]
[419800193,1775386846742,1667.7,0.00034805,120]
[419800194,1775386846974,1667.7,0.00034805,120]
[419800195,1775386847319,1667.7,0.00034805,120]
[419800196,1775386847530,1667.7,0.00034805,120]
[419800197,1775386847698,1667.86718356,0.00034805,120]
[419800198,1775386866881,152.16792427,0.00034805,120]
[419800199,1775386869470,500.0,0.00034805,120]
[419800200,1775386869712,588.05499986,0.00034805,120]
[419800201,1775386880136,975.07224093,0.00032876,120]
[419800203,1775386904805,482.355067,0.0003287,120]
[419800204,1775386917336,1118.55,0.00034805,120]
[419800205,1775386917578,1118.55,0.00034805,120]
[419800206,1775386917794,1118.55,0.00034805,120]
[419800207,1775386918013,1118.55,0.00034805,120]
[419800208,1775386918247,1118.55,0.00034805,120]
[419800209,1775386918478,1118.55,0.00034805,120]
[419800210,1775386918710,1118.55,0.00034805,120]
[419800211,1775386918966,1118.55,0.00034805,120]
[419800212,1775386919180,1118.55,0.00034805,120]
[419800213,1775386919404,1118.55,0.00034805,120]
[419800214,1775386925235,1118.55,0.00034805,120]
[419800215,1775386925482,1118.55,0.00034805,120]
[419800216,1775386925713,1118.55,0.00034805,120]
[419800217,1775386925954,1118.55,0.00034805,120]
[419800218,1775386926169,1118.55,0.00034805,120]
[419800219,1775386926387,1118.55,0.00034805,120]
[419800220,1775386926639,1118.55,0.00034805,120]
[419800221,1775386926855,1118.55,0.00034805,120]
[419800222,1775386927079,1118.55,0.00034805,120]
[419800223,1775386927294,1118.55,0.00034805,120]
[419800224,1775386927535,1118.55,0.00034805,120]
[419800225,1775386927750,1118.55,0.00034805,120]
[419800226,1775386927969,1118.55,0.00034805,120]
[419800227,1775386928185,1118.6977885,0.00034805,120]
[419800228,1775386934761,156.23309545,0.00034805,120]
[419800229,1775386940087,500.0,0.00034805,120]
[419800230,1775386940303,500.0,0.00034805,120]
[419800231,1775386940530,500.0,0.00034805,120]
[419800232,1775386940768,510.21495496,0.00034805,120]
[419800233,1775386944043,151.19321693,0.00034805,120]
[419800234,1775386946003,500.0,0.00034805,120]
[419800235,1775386952635,156.35453843,0.00034805,120]
[419800236,1775386962928,178.07213623,0.00034805,120]
[419800238,1775386983980,500.0,0.00030137,120]
[419800239,1775387013044,158.8931955,0.00034805,120]
[419800240,1775387029561,500.0,0.00030137,120]
[419800241,1775387033533,500.0,0.00034805,120]
[419800242,1775387033791,500.0,0.00034805,120]
[419800243,1775387034016,500.0,0.00034805,120]
[419800244,1775387034241,500.0,0.00034805,120]
[419800245,1775387034462,500.0,0.00034805,120]
[419800246,1775387034697,500.0,0.00034805,120]
[419800247,1775387034914,500.0,0.00034805,120]
[419800248,1775387035127,500.0,0.00034805,120]
[419800249,1775387035350,500.0,0.00034805,120]
[419800250,1775387035578,500.0,0.00034805,120]
[419800251,1775387035794,500.0,0.00034805,120]
[419800252,1775387036030,500.0,0.00034805,120]
[419800253,1775387036281,500.0,0.00034805,120]
[419800254,1775387036505,500.0,0.00034805,120]
[419800255,1775387036723,500.0,0.00034805,120]
[419800256,1775387036951,411.1740154,0.00034805,120]
[419800257,1775387046270,284.0,0.00030137,120]
[419800258,1775387091278,255.90621662,0.00034805,120]
[419800260,1775387122733,205.58763608,0.0003481,120]
[419800261,1775387157323,155.06714693,0.0003481,120]
[419800262,1775387157871,500.0,0.0003481,120]
[419800263,1775387158087,500.0,0.0003481,120]
[419800264,1775387158305,500.0,0.0003481,120]
[419800265,1775387158527,500.0,0.0003481,120]
[419800266,1775387158749,502.57438897,0.0003481,120]
[419800267,1775387174110,500.0,0.0003481,120]
[419800268,1775387174373,500.0,0.0003481,120]
[419800269,1775387174557,500.0,0.0003481,120]
[419800270,1775387174802,500.0,0.0003481,120]
[419800271,1775387175019,500.0,0.0003481,120]
[419800272,1775387175242,500.0,0.0003481,120]
[419800273,1775387175463,500.0,0.0003481,120]
[419800274,1775387175676,500.0,0.0003481,120]
[419800275,1775387175890,500.0,0.0003481,120]
[419800276,1775387176123,500.0,0.0003481,120]
[419800277,1775387176345,500.0,0.0003481,120]
[419800278,1775387176573,500.0,0.0003481,120]
[419800279,1775387176784,500.0,0.0003481,120]
[419800280,1775387177334,500.0,0.0003481,120]
[419800281,1775387177553,500.0,0.0003481,120]
[419800282,1775387178121,500.0,0.0003481,120]
[419800283,1775387178346,500.0,0.0003481,120]
[419800284,1775387178561,500.0,0.0003481,120]
[419800285,1775387178773,500.0,0.0003481,120]
[419800286,1775387178989,536.47802116,0.0003481,120]
[419800294,1775387246572,500.0,0.0003481,120]
[419800296,1775387294736,156.25323201,0.0003481,120]
[419800297,1775387312806,151.83828573,0.0003481,120]
[419800299,1775387358730,156.30130249,0.0003481,120]
[419800300,1775387361410,169.34,0.0003481,120]
[419800305,1775387368666,335.25713748,0.0003481,120]
[419800306,1775387400227,164.59664096,0.0003481,120]
[419800307,1775387402408,200.0,0.0003481,120]
[419800308,1775387403777,1195.34660397,0.0003481,120]
[419800309,1775387404182,1497.01225515,0.0003481,120]
[419800310,1775387405133,1116.53946804,7e-05,2]
[419800311,1775387407306,28918.99278363,7.6e-05,2]
[419800312,1775387413256,2034.75335695,0.0003481,120]
[419800313,1775387432111,-500.0,0.00012973,2]
[419800314,1775387432120,-500.0,0.00012973,2]
[419800315,1775387432130,-604.0,0.00012973,2]
[419800316,1775387432140,-300.0,0.00012998,2]
[419800317,1775387432150,-989.0,0.00012998,2]
[419800318,1775387432160,-500.0,0.00012999,2]
[419800319,1775387432170,-399.28403805,0.00012999,2]
[419800320,1775387432179,-608.58855181,0.00012999,2]
[419800321,1775387432188,-183.3600597,0.00012999,2]
[419800322,1775387432198,-500.0,0.00012999,2]
[419800323,1775387432207,-500.0,0.00012999,2]
[419800324,1775387432218,-500.0,0.00012999,2]
[419800325,1775387432227,-500.0,0.00012999,2]
[419800326,1775387432236,-500.0,0.00012999,2]
[419800327,1775387432245,-500.0,0.00012999,2]
[419800328,1775387432254,-500.0,0.00012999,2]
[419800329,1775387432264,-500.0,0.00012999,2]
[419800330,1775387432274,-500.0,0.00012999,2]
[419800332,1775387432283,-500.0,0.00012999,2]
[419800334,1775387432293,-455.48939902,0.00012999,2]
[419800336,1775387432305,-44.51060098,0.00012999,2]
[419800337,1775387432314,-500.0,0.00012999,2]
[419800338,1775387432323,-452.81162139,0.00012999,2]
[419800339,1775387432334,-47.18837861,0.00012999,2]
[419800340,1775387432343,-500.0,0.00012999,2]
[419800341,1775387432352,-500.0,0.00012999,2]
[419800342,1775387432362,-30.90078281,0.00012999,2]
[419800343,1775387432411,-128.86988437,0.00012999,2]
[419800344,1775387432421,-500.0,0.00012999,2]
[419800345,1775387432431,-500.0,0.00012999,2]
[419800346,1775387432441,-280.79708544,0.00012999,2]
[419800347,1775387432453,-219.20291456,0.00012999,2]
[419800348,1775387432462,-322.9703539,0.00012999,2]
[419800349,1775387432472,-500.0,0.00012999,2]
[419800350,1775387432481,-500.0,0.00012999,2]
[419800351,1775387432491,-500.0,0.00012999,2]
[419800352,1775387432500,-500.0,0.00012999,2]
[419800353,1775387432510,-1216.6731453,0.00012999,2]
[419800354,1775387432519,-1216.6731453,0.00012999,2]
[419800355,1775387432528,-1216.6731453,0.00012999,2]
[419800356,1775387432537,-129.82425664,0.00012999,2]
[419800357,1775387432549,-276.36,0.00012999,2]
[419800368,1775387438488,-810.48888866,0.00012999,2]
[419800369,1775387438497,-1216.6731453,0.00012999,2]
[419800370,1775387438506,-1216.6731453,0.00012999,2]
[419800371,1775387438516,-1216.6731453,0.00012999,2]
[419800372,1775387438525,-1216.6731453,0.00012999,2]
[419800373,1775387438535,-1216.6731453,0.00012999,2]
[419800374,1775387438545,-1216.6731453,0.00012999,2]
[419800375,1775387438555,-1216.6731453,0.00012999,2]
[419800376,1775387438564,-1216.6731453,0.00012999,2]
[419800377,1775387438573,-1216.6731453,0.00012999,2]
[419800378,1775387438583,-1216.6731453,0.00012999,2]
[419800379,1775387438592,-1216.6731453,0.00012999,2]
[419800381,1775387438601,-1216.6731453,0.00012999,2]
[419800383,1775387438612,-1216.6731453,0.00012999,2]
[419800385,1775387438621,-1216.6731453,0.00012999,2]
[419800387,1775387438630,-1216.6731453,0.00012999,2]
[419800388,1775387438639,-1216.6731453,0.00012999,2]
[419800389,1775387438648,-1260.91580513,0.00012999,2]
[419800390,1775387438657,-1260.91580513,0.00012999,2]
[419800391,1775387438667,-1260.91580513,0.00012999,2]
[419800392,1775387438677,-1260.91580513,0.00012999,2]
[419800393,1775387438687,-1260.91580513,0.00012999,2]
[419800394,1775387438696,-1260.91580513,0.00012999,2]
[419800395,1775387438706,-1260.91580513,0.00012999,2]
[419800397,1775387438715,-1260.91580513,0.00012999,2]
[419800399,1775387438724,-1260.91580513,0.00012999,2]
[419800401,1775387438734,-364861.21533005,0.00013,2]
[419800657,1775387441213,-384.033501,0.00013,2]
[419801066,1775387446619,-112668.89829122,0.00013,2]
[419801162,1775387448092,-920.32817028,0.00013,2]
[419801558,1775387534800,3752.02898094,0.00034812,120]
[419801559,1775387545549,500.0,0.00034812,120]
[419801560,1775387545777,500.0,0.00034812,120]
[419801561,1775387545989,500.0,0.00034812,120]
[419801562,1775387546201,500.0,0.00034812,120]
[419801563,1775387546413,500.0,0.00034812,120]
[419801564,1775387546624,500.0,0.00034812,120]
[419801565,1775387546852,500.0,0.00034812,120]
[419801566,1775387547084,500.0,0.00034812,120]
[419801567,1775387547335,500.0,0.00034812,120]
[419801568,1775387547548,500.0,0.00034812,120]
[419801569,1775387547762,500.0,0.00034812,120]
[419801570,1775387548038,500.0,0.00034812,120]
[419801571,1775387548301,500.0,0.00034812,120]
[419801572,1775387548515,296.80457227,0.00034812,120]
[419801573,1775387556129,500.0,0.00034812,120]
[419801576,1775387845490,500.0,0.00034784,120]
[419801581,1775388146446,500.0,0.00034787,120]
[419801585,1775388447495,500.0,0.00034787,120]
[419801586,1775388632409,-300.0,0.00012999,2]
[419801587,1775388632419,-213.0,0.00012999,2]
[419801588,1775388632428,-3669.52470745,0.00013,2]
[419801589,1775388632438,-166.0,0.00013,2]
[419801590,1775388632447,-269.56640304,0.00013233,14]
[419801591,1775388632456,-835.74105537,0.00013648,2]
[419801592,1775388632466,-647.72975717,0.00013648,2]
[419801629,1775388638505,-528.41622008,0.00013648,2]
[419801631,1775388638514,-176.39489157,0.00013698,2]
[419801633,1775388638523,-1000.0,0.00013699,2]
[419801635,1775388638533,-292.99341734,0.00013816,2]
[419801637,1775388638542,-412.33229713,0.00013816,2]
[419801639,1775388638551,-1079.34720624,0.00014175,2]
[419801641,1775388638560,-420.0,0.00014256,2]
[419801642,1775388638570,-587.0,0.00015634,2]
[419801644,1775388638580,-1000.0,0.00016195,2]
[419801646,1775388638590,-321.82811779,0.00016211,2]
[419801650,1775388638612,-40.85609107,0.00016211,2]
[419801652,1775388638621,-1583.99790481,0.00016359,3]
[419801654,1775388638630,-823.0,0.00017145,2]
[419801655,1775388638639,-189.549681,0.00017422,2]
[419801657,1775388638648,-496.47127165,0.00017529,2]
[419801659,1775388638657,-168.3888056,0.00017529,2]
[419801661,1775388638666,-151.0,0.00017529,2]
[419801663,1775388638675,-156.82605751,0.00017529,2]
[419801665,1775388638684,-557.5788265,0.00017529,2]
[419801667,1775388638694,-557.5788265,0.00017529,2]
[419801669,1775388638704,-2230.315306,0.00017529,2]
[419801671,1775388638713,-578.20924308,0.00017584,2]
[419801673,1775388638722,-210.7965759,0.00017593,2]
[419801675,1775388638732,-174.696374,0.00017593,2]
[419801677,1775388638741,-455.2653161,0.0001761,2]
[419801679,1775388638750,-599.60298507,0.00017639,2]
[419801681,1775388638759,-621.78829552,0.00017694,2]
[419801683,1775388638769,-644.79446246,0.00017749,2]
[419801685,1775388638778,-668.65185757,0.00017804,2]
[419801687,1775388638787,-693.3919763,0.00017859,2]
[419801689,1775388638797,-150.09,0.00017913,2]
[419801691,1775388638806,-719.04747942,0.00017914,2]
[419801693,1775388638816,-745.65223616,0.00017969,2]
[419801695,1775388638825,-3561.2978964,0.00017977,2]
[419801697,1775388638834,-773.2413689,0.00018024,2]
[419801700,1775388638851,-526.48572629,0.00018077,2]
[419801702,1775388638868,-51.72351679,0.00018077,2]
[419801704,1775388638878,-2312.83697232,0.00018077,2]
[419801707,1775388638889,-801.85129955,0.00018079,2]
[419801709,1775388638898,-831.51979763,0.00018134,2]
[419801711,1775388638908,-862.28603014,0.00018189,2]
[419801713,1775388638918,-894.19061326,0.00018244,2]
[419801715,1775388638927,-185.00000001,0.00018293,2]
[419801717,1775388638936,-205.24073344,0.00018466,2]
[419801719,1775388638945,-426.01198627,0.00018466,2]
[419801721,1775388638954,-500.0,0.00018466,2]
[419801723,1775388638964,-967.46972754,0.00018466,2]
[419801724,1775388638974,-500.0,0.00018466,2]
[419801726,1775388638983,-967.46972754,0.00018466,2]
[419801728,1775388638992,-967.46972754,0.00018466,2]
[419801730,1775388639002,-500.0,0.00018466,2]
[419801732,1775388639013,-967.46972754,0.00018466,2]
[419801734,1775388639022,-270.83555047,0.00018466,2]
[419802180,1775388643877,-229.16444953,0.00018466,2]
[419802182,1775388643887,-967.46972754,0.00018466,2]
[419802184,1775388643896,-967.46972754,0.00018466,2]
[419802186,1775388643906,-967.46972754,0.00018466,2]
[419802188,1775388643916,-967.46972754,0.00018466,2]
[419802190,1775388643925,-967.46972754,0.00018466,2]